bitfinex/quotes_BTCUSD_20240827
["timestamp","ask_amount","ask_price","bid_price","bid_amount"]
[1724774465618,0.162019,61721.0,61720.0,0.1831]
[1724774465827,0.15996545,61721.0,61712.0,0.5644]
[1724774466041,0.23157015,61720.0,61712.0,0.5644]
[1724774466256,0.55561815,61720.0,61712.0,0.5644]
[1724774466507,0.23157015,61720.0,61712.0,0.5644]
[1724774466758,0.23157015,61720.0,61712.0,0.3813]
[1724774466759,0.09427516,61719.0,61712.0,0.3813]
[1724774467000,0.16204,61713.0,61712.0,0.3813]
[1724774467206,0.66908545,61713.0,61712.0,0.3813]
[1724774467416,0.18296545,61713.0,61712.0,0.3813]
[1724774467635,0.023,61713.0,61712.0,0.3813]
[1724774467861,0.023,61718.0,61712.0,0.3813]
[1724774468079,0.32199645,61717.0,61712.0,0.3813]
[1724774468290,0.023,61716.0,61712.0,0.3813]
[1724774468510,0.023,61718.0,61716.0,0.162031]
[1724774468752,0.023,61718.0,61714.0,0.162036]
[1724774468753,0.18296545,61718.0,61714.0,0.162036]
[1724774468984,0.02173539,61717.0,61714.0,0.162036]
[1724774469220,0.02173539,61717.0,61712.0,0.3813]
[1724774469221,0.02173539,61717.0,61712.0,0.3843]
[1724774469463,0.02173539,61717.0,61712.0,0.543341]
[1724774469936,0.02173539,61717.0,61712.0,0.3813]
[1724774470173,0.001,61718.0,61713.0,0.324079]
[1724774470434,0.001,61718.0,61716.0,0.16203]
[1724774470668,0.001,61718.0,61716.0,0.162032]
[1724774470905,0.001,61718.0,61717.0,1.197747]
[1724774471157,0.161989,61733.0,61719.0,0.324048]
[1724774471337,0.161989,61733.0,61722.0,0.324031]
[1724774471338,0.15996545,61732.0,61722.0,0.324031]
[1724774471603,0.15996545,61732.0,61717.0,0.909755]
[1724774471817,0.15996545,61732.0,61722.0,0.324029]
[1724774472025,0.01853515,61731.0,61724.0,0.324022]
[1724774472230,0.15996545,61730.0,61724.0,0.162009]
[1724774472681,0.15996545,61730.0,61718.0,0.711653]
[1724774472883,0.15996545,61730.0,61718.0,0.3876]
[1724774472884,0.38715343,61728.0,61718.0,0.3876]
[1724774473091,0.15996545,61727.0,61718.0,0.3876]
[1724774473300,0.05471189,61726.0,61718.0,0.3876]
[1724774473503,0.32197445,61725.0,61718.0,0.3876]
[1724774473704,0.15996545,61725.0,61718.0,0.3876]
[1724774473947,0.023,61724.0,61718.0,0.3876]
[1724774474177,0.15996545,61723.0,61718.0,0.3876]
[1724774474453,0.02376773,61722.0,61718.0,0.3876]
[1724774475204,0.02376773,61722.0,61718.0,0.549627]
[1724774475454,0.005,61724.0,61718.0,0.3876]
[1724774475698,0.009,61726.0,61722.0,0.3748]
[1724774475938,0.009,61726.0,61723.0,0.162013]
[1724774476178,0.00090421,61732.0,61723.0,0.162013]
[1724774476179,0.00090421,61732.0,61726.0,0.32401]
[1724774476533,0.00090421,61732.0,61731.0,0.536793]
[1724774476686,0.00090421,61732.0,61731.0,1.53403045]
[1724774476980,0.00090421,61732.0,61731.0,1.63403045]
[1724774477198,0.002,61753.0,61745.0,0.675968]
[1724774477199,0.47989634,61746.0,61745.0,0.675968]
[1724774477441,0.47989634,61746.0,61745.0,1.38408]
[1724774477653,0.002,61753.0,61752.0,0.161938]
[1724774478062,0.002,61753.0,61748.0,0.323892]
[1724774478266,0.002,61753.0,61751.0,0.161938]
[1724774478498,0.002,61753.0,61746.0,0.323907]
[1724774478738,0.002,61753.0,61745.0,0.5743]
[1724774478941,0.0163931,61752.0,61746.0,0.323905]
[1724774479142,0.002,61753.0,61746.0,0.323905]
[1724774479318,0.002,61753.0,61748.0,0.163947]
[1724774479477,0.002,61753.0,61748.0,0.002]
[1724774479849,0.002,61753.0,61748.0,0.323896]
[1724774480028,0.005,61753.0,61750.0,0.161942]
[1724774480268,0.002,61753.0,61748.0,0.161946]
[1724774480479,0.002,61753.0,61745.0,0.5743]
[1724774480480,0.001,61753.0,61745.0,0.736254]
[1724774480684,0.323882,61751.0,61745.0,0.5743]
[1724774480816,0.21052875,61750.0,61745.0,0.5743]
[1724774481019,0.04858475,61750.0,61745.0,0.5743]
[1724774481858,0.15996545,61749.0,61739.0,0.3657]
[1724774482105,0.323917,61745.0,61739.0,0.3657]
[1724774482239,0.2106537,61744.0,61739.0,0.3657]
[1724774482621,0.2106537,61744.0,61733.0,0.1936]
[1724774482622,0.023,61743.0,61734.0,0.3564]
[1724774482850,0.161982,61735.0,61726.0,0.1936]
[1724774483092,0.323952,61738.0,61726.0,0.1936]
[1724774483322,0.162003,61728.0,61722.0,0.3564]
[1724774483536,0.162002,61728.0,61722.0,0.3564]
[1724774483970,0.15996545,61734.0,61722.0,0.3564]
[1724774484198,0.23338045,61733.0,61722.0,0.3564]
[1724774484427,0.15996545,61732.0,61725.0,0.162008]
[1724774484629,0.15996545,61732.0,61722.0,0.3564]
[1724774484846,0.32195545,61732.0,61722.0,0.518415]
[1724774485064,0.06943189,61731.0,61723.0,0.162013]
[1724774485284,0.23142589,61731.0,61722.0,0.3564]
[1724774485495,0.161996,61730.0,61722.0,0.3564]
[1724774485699,0.15996545,61730.0,61722.0,0.3564]
[1724774485915,0.32196345,61730.0,61722.0,0.3564]
[1724774486127,0.12369633,61729.0,61722.0,0.3564]
[1724774486370,0.15996545,61729.0,61723.0,0.162013]
[1724774486616,0.15996545,61729.0,61722.0,0.3564]
[1724774486834,0.15996545,61729.0,61722.0,0.518416]
[1724774487038,0.15996545,61729.0,61722.0,0.3564]
[1724774488491,0.16096545,61729.0,61722.0,0.3564]
[1724774488694,0.06479425,61728.0,61722.0,0.3564]
[1724774488906,0.06479425,61728.0,61722.0,0.518416]
[1724774489323,0.06479425,61728.0,61722.0,0.519416]
[1724774489471,0.06479425,61728.0,61722.0,0.3564]
[1724774489932,0.06479425,61728.0,61722.0,0.3574]
[1724774490113,0.001,61729.0,61728.0,1.401405]
[1724774490342,0.001,61729.0,61728.0,1.98537245]
[1724774490549,0.001,61729.0,61728.0,2.30937445]
[1724774490753,0.001,61729.0,61728.0,1.98537245]
[1724774490961,0.001,61729.0,61728.0,2.1503379]
[1724774491172,0.001,61729.0,61728.0,2.4743399]
[1724774491369,0.001,61729.0,61728.0,2.50141561]
[1724774491599,0.00090421,61742.0,61741.0,0.809832]
[1724774491775,0.00090421,61742.0,61741.0,1.190132]
[1724774493205,0.00190421,61742.0,61741.0,1.202132]
[1724774493533,0.00290421,61742.0,61741.0,1.202132]
[1724774494420,0.00190421,61742.0,61741.0,1.202132]
[1724774494815,0.00290421,61742.0,61741.0,1.202132]
[1724774495630,0.00190421,61742.0,61741.0,1.190132]
[1724774495827,0.00090421,61742.0,61741.0,1.190132]
[1724774496045,0.00190421,61742.0,61741.0,1.200132]
[1724774496190,0.00290421,61742.0,61741.0,1.190132]
[1724774496395,0.00290421,61742.0,61741.0,0.542266]
[1724774496603,0.00390421,61742.0,61741.0,1.202132]
[1724774496824,0.00290421,61742.0,61741.0,1.190132]
[1724774497067,0.00290421,61742.0,61741.0,1.711365]
[1724774497370,0.00390421,61742.0,61741.0,1.721365]
[1724774497578,0.00190421,61742.0,61741.0,1.387432]
[1724774497800,0.00190421,61742.0,61741.0,0.739566]
[1724774498071,0.00290421,61742.0,61741.0,1.063499]
[1724774498288,0.00190421,61742.0,61741.0,0.739566]
[1724774498506,0.161967,61741.0,61735.0,0.5429]
[1724774498726,0.17835812,61740.0,61735.0,0.3572]
[1724774498883,0.01638712,61740.0,61735.0,0.3572]
[1724774499327,0.01638712,61740.0,61736.0,0.161979]
[1724774499552,0.01638712,61740.0,61735.0,0.519182]
[1724774499775,0.00290421,61742.0,61735.0,0.519182]
[1724774499776,0.00290421,61742.0,61735.0,0.3572]
[1724774499991,0.00390421,61742.0,61741.0,0.006]
[1724774500428,0.00190421,61742.0,61735.0,0.519181]
[1724774500665,0.00090421,61742.0,61735.0,0.519181]
[1724774500879,0.007,61740.0,61736.0,0.001]
[1724774501099,0.007,61740.0,61735.0,0.519182]
[1724774501325,0.007,61740.0,61736.0,0.161979]
[1724774501522,0.04937802,61740.0,61735.0,0.519181]
[1724774502268,0.00490421,61742.0,61735.0,0.519181]
[1724774502440,0.00190421,61742.0,61735.0,0.519181]
[1724774502679,0.16386821,61742.0,61735.0,0.3572]
[1724774502888,0.161991,61732.0,61724.0,0.162011]
[1724774503102,0.0161991,61731.0,61724.0,0.162009]
[1724774503289,0.1806,61739.0,61727.0,0.162002]
[1724774503290,0.16198,61736.0,61727.0,0.162002]
[1724774503483,0.15996545,61736.0,61729.0,0.161997]
[1724774503705,0.15996545,61736.0,61728.0,0.162]
[1724774503706,0.32194545,61736.0,61728.0,0.162]
[1724774504322,0.02538045,61737.0,61735.0,0.161981]
[1724774504605,0.02538045,61737.0,61729.0,0.3904]
[1724774504606,0.02538045,61737.0,61736.0,0.16198]
[1724774504788,0.02538045,61737.0,61735.0,0.161982]
[1724774505010,0.005,61736.0,61735.0,0.161982]
[1724774505234,0.003,61736.0,61735.0,0.161982]
[1724774505660,0.00090421,61742.0,61737.0,0.161976]
[1724774505959,0.00090421,61742.0,61735.0,0.323963]
[1724774506172,0.161968,61741.0,61731.0,0.323984]
[1724774506381,0.161968,61741.0,61729.0,0.714396]
[1724774506382,0.15996545,61741.0,61729.0,0.3904]
[1724774506587,0.002,61737.0,61724.0,0.3632]
[1724774506812,0.161991,61732.0,61725.0,0.1]
[1724774507022,0.161991,61732.0,61724.0,0.525211]
[1724774507265,0.16199,61732.0,61724.0,0.525211]
[1724774507482,0.161983,61735.0,61727.0,0.162002]
[1724774507695,0.1096038,61734.0,61726.0,0.162004]
[1724774507902,0.2715898,61734.0,61726.0,0.162004]
[1724774508103,0.161988,61733.0,61725.0,0.162007]
[1724774508531,0.323982,61732.0,61724.0,0.3632]
[1724774508740,0.161996,61730.0,61720.0,0.324043]
[1724774508957,0.161995,61731.0,61722.0,0.162016]
[1724774509158,0.323988,61731.0,61721.0,0.162019]
[1724774509364,0.162001,61728.0,61720.0,0.162021]
[1724774509566,0.10641387,61730.0,61718.0,0.681372]
[1724774509810,0.323999,61729.0,61718.0,0.000822]
[1724774510016,0.162012,61724.0,61718.0,0.000822]
[1724774510449,0.35390502,61728.0,61718.0,0.162848]
[1724774510651,0.16201,61725.0,61718.0,0.000822]
[1724774511116,0.162014,61723.0,61718.0,0.000822]
[1724774511341,0.162011,61724.0,61718.0,0.000822]
[1724774511563,0.1907,61722.0,61718.0,0.000822]
[1724774511773,0.486073,61719.0,61718.0,0.000822]
[1724774513069,0.810122,61719.0,61718.0,0.000822]
[1724774513277,0.810122,61719.0,61718.0,0.001822]
[1724774513484,1.134171,61719.0,61718.0,0.001822]
[1724774513729,1.29413645,61719.0,61718.0,0.000822]
[1724774513936,1.29413645,61719.0,61718.0,0.004822]
[1724774514187,1.4541019,61719.0,61718.0,0.000822]
[1724774514395,1.52507928,61719.0,61718.0,0.000822]
[1724774514627,1.53407928,61719.0,61718.0,0.001822]
[1724774514846,1.53407928,61719.0,61718.0,0.000822]
[1724774514847,1.07405352,61719.0,61718.0,0.000822]
[1724774515072,0.019,61719.0,61718.0,0.000822]
[1724774515489,0.019,61719.0,61718.0,0.162849]
[1724774515689,0.009,61719.0,61718.0,0.000822]
[1724774516207,0.018,61719.0,61718.0,0.001822]
[1724774516347,0.018,61719.0,61718.0,0.163849]
[1724774516557,0.01694983,61728.0,61718.0,0.00406224]
[1724774516730,0.161999,61729.0,61720.0,0.16202]
[1724774516940,0.25164996,61729.0,61720.0,0.162021]
[1724774517169,0.25164996,61729.0,61721.0,0.00324005]
[1724774517170,0.162002,61728.0,61721.0,0.00324005]
[1724774517598,0.08964996,61729.0,61719.0,0.162024]
[1724774517744,0.04856028,61728.0,61719.0,0.162024]
[1724774517953,0.04856028,61728.0,61720.0,0.001]
[1724774518357,0.162003,61727.0,61720.0,0.001]
[1724774518604,0.15996545,61726.0,61720.0,0.001]
[1724774518808,0.162019,61721.0,61720.0,0.001]
[1724774519025,0.55065854,61721.0,61720.0,0.001]
[1724774519444,0.22662054,61721.0,61718.0,0.000822]
[1724774519649,0.04798258,61725.0,61721.0,0.001]
[1724774519830,0.07197388,61727.0,61721.0,0.001]
[1724774519831,0.02538747,61727.0,61721.0,0.001]
[1724774520094,0.02538747,61727.0,61720.0,0.3522]
[1724774520346,0.02538747,61727.0,61726.0,0.162006]
[1724774520577,0.011,61728.0,61727.0,0.810017]
[1724774520816,0.011,61728.0,61726.0,0.3847]
[1724774520817,0.02538349,61735.0,61729.0,0.161996]
[1724774521317,0.02538349,61735.0,61730.0,0.161995]
[1724774521576,0.02538349,61735.0,61729.0,0.323995]
[1724774521796,0.02538349,61735.0,61730.0,0.323989]
[1724774522047,0.02538349,61735.0,61734.0,0.161985]
[1724774522260,0.02638349,61735.0,61733.0,0.161987]
[1724774522480,0.001,61735.0,61733.0,0.161987]
[1724774522695,0.001,61735.0,61731.0,0.16199]
[1724774523159,0.001,61735.0,61732.0,0.16199]
[1724774523396,0.001,61735.0,61731.0,0.161992]
[1724774523649,0.02628454,61742.0,61733.0,0.002]
[1724774523900,0.02628454,61742.0,61736.0,0.161979]
[1724774524153,0.02628454,61742.0,61730.0,0.323988]
[1724774524154,0.18824954,61742.0,61730.0,0.323988]
[1724774524362,0.001,61735.0,61731.0,0.002]
[1724774524579,0.161998,61729.0,61728.0,0.000822]
[1724774524805,0.323977,61733.0,61728.0,0.000822]
[1724774525033,0.37197284,61737.0,61728.0,0.000822]
[1724774525292,0.02538217,61733.0,61728.0,0.000822]
[1724774525937,0.34935917,61733.0,61728.0,0.000822]
[1724774526193,0.161996,61730.0,61728.0,0.000822]
[1724774526443,0.161998,61729.0,61728.0,0.000822]
[1724774527159,0.162998,61729.0,61728.0,0.000822]
[1724774527629,0.161998,61729.0,61728.0,0.000822]
[1724774527857,0.161998,61729.0,61728.0,0.002822]
[1724774528844,1.83883233,61729.0,61728.0,0.002822]
[1724774529295,1.8628845,61729.0,61728.0,0.002822]
[1724774530121,1.86287814,61729.0,61728.0,0.000822]
[1724774530366,1.87287814,61729.0,61728.0,0.001822]
[1724774530570,1.476732,61729.0,61728.0,0.001822]
[1724774530769,1.39085352,61729.0,61728.0,0.001822]
[1724774530969,1.34275545,61729.0,61728.0,0.001822]
[1724774531170,1.35075545,61729.0,61728.0,0.001822]
[1724774531656,0.015,61729.0,61728.0,1.83599445]
[1724774531854,0.015,61729.0,61728.0,2.0959599]
[1724774532065,0.015,61729.0,61728.0,2.11345356]
[1724774532880,0.00090421,61742.0,61739.0,0.16197]
[1724774533090,0.00090421,61742.0,61740.0,0.3764]
[1724774533896,0.00090421,61742.0,61740.0,0.538369]
[1724774534550,0.00090421,61742.0,61741.0,0.161966]
[1724774535327,0.00090421,61742.0,61740.0,0.541369]
[1724774535523,0.00090421,61742.0,61740.0,0.3794]
[1724774535947,0.00090421,61742.0,61740.0,0.003]
[1724774536152,0.00090421,61742.0,61730.0,0.161995]
[1724774536153,0.16197,61740.0,61730.0,0.161995]
[1724774536384,0.16197,61740.0,61729.0,0.3722]
[1724774536385,0.04868032,61740.0,61729.0,0.3722]
[1724774536632,0.24438032,61740.0,61729.0,0.3722]
[1724774537040,0.00090421,61742.0,61732.0,0.32398]
[1724774537270,0.005,61740.0,61733.0,0.16522416]
[1724774537912,0.003,61740.0,61733.0,0.16522616]
[1724774538615,0.161975,61738.0,61729.0,0.3722]
[1724774538832,0.326939,61740.0,61729.0,0.3722]
[1724774538833,0.161977,61737.0,61729.0,0.3722]
[1724774538993,0.003,61740.0,61729.0,0.3722]
[1724774539204,0.005,61740.0,61731.0,0.161992]
[1724774539450,0.005,61740.0,61732.0,0.00323934]
[1724774539653,0.00090421,61742.0,61735.0,0.3671]
[1724774539831,0.00090421,61742.0,61736.0,0.00323917]
[1724774540039,0.001,61740.0,61736.0,0.00323917]
[1724774540287,0.02537784,61741.0,61736.0,0.00323917]
[1724774540765,0.001,61740.0,61736.0,0.00323917]
[1724774540982,0.02537784,61741.0,61736.0,0.00323917]
[1724774541208,0.18734484,61741.0,61736.0,0.001]
[1724774541428,0.02537784,61741.0,61736.0,0.001]
[1724774542529,0.161977,61737.0,61736.0,0.001]
[1724774542728,0.161984,61735.0,61729.0,0.1]
[1724774542909,0.16198,61736.0,61729.0,0.1]
[1724774543819,0.12623215,61736.0,61728.0,0.374522]
[1724774544086,0.161993,61732.0,61728.0,0.374522]
[1724774544290,0.323957,61737.0,61728.0,0.374522]
[1724774544481,0.161987,61734.0,61728.0,0.374522]
[1724774544702,0.161987,61734.0,61729.0,0.001]
[1724774544838,0.323961,61736.0,61729.0,0.001]
[1724774544839,0.161982,61735.0,61729.0,0.001]
[1724774545483,0.37202569,61740.0,61729.0,0.001]
[1724774545703,0.161982,61736.0,61729.0,0.001]
[1724774546039,0.161982,61735.0,61729.0,0.001]
[1724774546241,0.161982,61735.0,61728.0,0.375522]
[1724774546470,0.02537784,61741.0,61735.0,0.161981]
[1724774546670,0.003,61740.0,61736.0,0.0032392]
[1724774546869,0.00090421,61742.0,61737.0,0.3534]
[1724774547333,0.00090421,61742.0,61739.0,0.1852]
[1724774547538,0.00090421,61742.0,61741.0,0.485899]
[1724774547747,0.00090421,61742.0,61741.0,0.809832]
[1724774548422,0.00090421,61742.0,61741.0,0.485899]
[1724774548850,0.00090421,61742.0,61741.0,1.01796445]
[1724774549055,0.00090421,61742.0,61741.0,1.34189745]
[1724774549541,0.00090421,61742.0,61741.0,1.34289745]
[1724774549960,0.00090421,61742.0,61741.0,1.34189745]
[1724774550133,0.00190421,61742.0,61741.0,1.34889745]
[1724774550405,0.00290421,61742.0,61741.0,1.34989745]
[1724774551267,0.00290421,61742.0,61741.0,0.16796545]
[1724774551466,0.00290421,61742.0,61741.0,0.008]
[1724774551960,0.18135483,61742.0,61741.0,0.008]
[1724774552146,1.00972421,61742.0,61741.0,0.008]
[1724774552407,1.35902964,61742.0,61741.0,0.008]
[1724774552618,1.03510164,61742.0,61741.0,0.008]
[1724774553002,1.03410164,61742.0,61741.0,0.007]
[1724774553261,1.03610164,61742.0,61741.0,0.007]
[1724774553466,1.03610164,61742.0,61730.0,0.1]
[1724774553467,0.161975,61738.0,61730.0,0.1]
[1724774553677,0.161975,61738.0,61730.0,0.261995]
[1724774554126,0.323942,61740.0,61730.0,0.1]
[1724774554127,0.161978,61737.0,61730.0,0.1]
[1724774554350,0.161975,61738.0,61730.0,0.261995]
[1724774555240,0.161978,61737.0,61730.0,0.1]
[1724774555545,0.485921,61739.0,61730.0,0.261994]
[1724774555788,0.485921,61739.0,61730.0,0.262994]
[1724774556026,0.485921,61739.0,61730.0,0.266994]
[1724774556226,0.161975,61738.0,61730.0,0.261994]
[1724774556507,0.161975,61738.0,61730.0,0.266994]
[1724774556737,0.161975,61738.0,61730.0,0.261994]
[1724774556955,0.161972,61739.0,61731.0,0.161993]
[1724774557636,0.161975,61738.0,61730.0,0.262994]
[1724774558322,0.323939,61740.0,61731.0,0.161993]
[1724774558535,0.16198,61737.0,61730.0,0.1]
[1724774558772,0.161975,61738.0,61730.0,0.266995]
[1724774558983,0.323949,61738.0,61730.0,0.105]
[1724774559220,0.323949,61738.0,61730.0,0.104]
[1724774559503,0.161981,61736.0,61730.0,0.104]
[1724774559688,0.161981,61736.0,61731.0,0.001]
[1724774559901,0.161981,61736.0,61728.0,0.000822]
[1724774559902,0.24104287,61736.0,61728.0,0.000822]
[1724774560111,0.485994,61729.0,61728.0,0.000822]
[1724774560321,1.84545145,61729.0,61728.0,0.000822]
[1724774560527,2.05358789,61729.0,61728.0,0.000822]
[1724774560740,2.07767339,61729.0,61728.0,0.000822]
[1724774561160,1.91770794,61729.0,61728.0,0.000822]
[1724774561807,1.36149,61729.0,61728.0,0.000822]
[1724774562017,1.037494,61729.0,61728.0,0.000822]
[1724774562424,1.037494,61729.0,61728.0,0.002822]
[1724774562835,1.037494,61729.0,61728.0,0.000822]
[1724774563061,0.013,61729.0,61728.0,0.000822]
[1724774563975,0.007,61729.0,61728.0,0.000822]
[1724774564452,0.007,61729.0,61728.0,0.162823]
[1724774564832,0.21015352,61737.0,61728.0,0.162823]
[1724774565169,0.006,61729.0,61728.0,0.162823]
[1724774565383,0.006,61729.0,61728.0,0.000822]
[1724774565618,0.162998,61729.0,61728.0,0.000822]
[1724774565830,0.59212797,61729.0,61728.0,0.001822]
[1724774566045,0.94020394,61729.0,61728.0,0.001822]
[1724774566256,0.85919647,61729.0,61728.0,0.001822]
[1724774566483,0.04820647,61730.0,61728.0,0.001822]
[1724774566682,0.04820647,61734.0,61728.0,0.000822]
[1724774566890,0.161985,61734.0,61729.0,0.3659]
[1724774567309,0.323957,61737.0,61729.0,0.3659]
[1724774567543,0.161975,61738.0,61731.0,0.1883]
[1724774567958,0.00090421,61739.0,61731.0,0.1883]
[1724774568206,0.161975,61738.0,61731.0,0.1883]
[1724774568410,0.161977,61737.0,61731.0,0.1883]
[1724774568624,0.37305768,61739.0,61731.0,0.1883]
[1724774568832,0.161975,61738.0,61731.0,0.1883]
[1724774569037,0.01,61738.0,61731.0,0.1883]
[1724774569241,0.01,61738.0,61732.0,0.161989]
[1724774569446,0.02537984,61738.0,61731.0,0.1883]
[1724774569666,0.02537984,61738.0,61733.0,0.161987]
[1724774570102,0.02537984,61738.0,61731.0,0.350291]
[1724774570761,0.18735484,61738.0,61731.0,0.1883]
[1724774570988,0.02537984,61738.0,61731.0,0.1883]
[1724774571198,0.02537984,61738.0,61731.0,0.35029]
[1724774571637,0.02637984,61738.0,61731.0,0.35029]
[1724774571847,0.19235484,61738.0,61731.0,0.1883]
[1724774572059,0.19135484,61738.0,61730.0,0.161994]
[1724774572269,0.161977,61737.0,61729.0,0.527896]
[1724774572477,0.19135484,61738.0,61730.0,0.161995]
[1724774572681,0.28255702,61738.0,61730.0,0.161995]
[1724774572889,0.161977,61737.0,61729.0,0.527895]
[1724774573091,0.32477103,61738.0,61730.0,0.161995]
[1724774573342,0.161985,61734.0,61729.0,0.3659]
[1724774573555,0.16253301,61737.0,61728.0,0.000822]
[1724774573556,0.161994,61731.0,61728.0,0.000822]
[1724774573782,0.161993,61731.0,61728.0,0.000822]
[1724774574261,0.18737489,61731.0,61728.0,0.000822]
[1724774574499,0.161998,61729.0,61728.0,0.000822]
[1724774574720,0.73152669,61729.0,61728.0,0.000822]
[1724774574880,0.9658442,61729.0,61728.0,0.000822]
[1724774575104,0.89352469,61729.0,61728.0,0.000822]
[1724774575551,0.161996,61730.0,61728.0,0.005822]
[1724774575754,0.02538189,61731.0,61728.0,0.000822]
[1724774576052,0.001,61729.0,61728.0,0.007822]
[1724774576281,0.002,61729.0,61728.0,0.397322]
[1724774576490,0.001,61729.0,61728.0,1.1355822]
[1724774576641,0.001,61729.0,61728.0,1.4595842]
[1724774576844,0.001,61729.0,61728.0,1.7835862]
[1724774577299,0.001,61729.0,61728.0,1.711129]
[1724774577526,0.001,61729.0,61728.0,2.19509645]
[1724774577717,0.00090421,61739.0,61738.0,1.138821]
[1724774578015,0.00090421,61739.0,61738.0,1.93518645]
[1724774578213,0.00090421,61739.0,61738.0,1.93018645]
[1724774578433,0.00090421,61739.0,61738.0,2.0951519]
[1724774578835,0.00290421,61739.0,61738.0,2.0951519]
[1724774579241,0.00090421,61739.0,61738.0,2.0951519]
[1724774579491,0.00190421,61739.0,61738.0,2.1071519]
[1724774579719,0.00290421,61739.0,61738.0,2.1091519]
[1724774579944,0.00290421,61739.0,61738.0,2.0971519]
[1724774580155,0.00390421,61739.0,61738.0,2.1111519]
[1724774580805,0.00390421,61739.0,61738.0,1.138323]
[1724774581455,0.00390421,61739.0,61738.0,1.462272]
[1724774581696,0.00390421,61739.0,61738.0,1.446272]
[1724774581697,0.00090421,61739.0,61738.0,1.446272]
[1724774581931,0.00290421,61739.0,61738.0,1.473272]
[1724774582186,0.00290421,61739.0,61738.0,1.149323]
[1724774582441,0.00090421,61739.0,61738.0,1.446272]
[1724774582693,0.00090421,61739.0,61738.0,1.133323]
[1724774582891,0.00290421,61739.0,61738.0,1.465272]
[1724774583098,0.00290421,61739.0,61738.0,1.454272]
[1724774583309,0.00390421,61739.0,61738.0,1.144323]
[1724774583730,0.00390421,61739.0,61738.0,1.468272]
[1724774584362,0.00290421,61739.0,61738.0,1.136323]
[1724774584576,0.00090421,61739.0,61738.0,1.446272]
[1724774584782,0.00090421,61739.0,61738.0,1.60623745]
[1724774584984,0.00290421,61739.0,61738.0,1.464272]
[1724774585417,0.00190421,61739.0,61738.0,1.453272]
[1724774585617,0.00190421,61739.0,61738.0,1.457272]
[1724774586038,0.00190421,61739.0,61738.0,1.446272]
[1724774586039,0.00090421,61739.0,61738.0,1.446272]
[1724774586243,0.00290421,61739.0,61738.0,1.465272]
[1724774586481,0.00290421,61739.0,61738.0,1.453272]
[1724774587922,0.00390421,61739.0,61738.0,1.464272]
[1724774588131,0.00390421,61739.0,61738.0,1.457272]
[1724774588132,0.00290421,61739.0,61738.0,1.457272]
[1724774588338,0.00290421,61739.0,61738.0,0.626374]
[1724774588513,0.00290421,61739.0,61738.0,0.111]
[1724774588746,0.00190421,61739.0,61738.0,0.007]
[1724774588953,0.00190421,61739.0,61738.0,0.107]
[1724774589164,0.00190421,61739.0,61738.0,0.012]
[1724774589367,0.00190421,61739.0,61733.0,0.161986]
[1724774589582,0.00290421,61739.0,61738.0,0.007]
[1724774589801,0.00390421,61739.0,61738.0,0.018]
[1724774590027,0.16587621,61739.0,61738.0,0.018]
[1724774590454,0.48982021,61739.0,61738.0,0.018]
[1724774591085,0.16587621,61739.0,61738.0,0.018]
[1724774591564,0.00390421,61739.0,61738.0,0.018]
[1724774593084,0.00390421,61739.0,61738.0,0.5642]
[1724774593296,0.02537754,61756.0,61755.0,0.16193]
[1724774593556,0.47989634,61766.0,61755.0,0.55995845]
[1724774593789,0.47989634,61766.0,61765.0,0.809517]
[1724774594001,0.011053,61775.0,61765.0,0.809517]
[1724774594002,0.009053,61775.0,61765.0,0.51546545]
[1724774594212,0.009053,61775.0,61766.0,0.1892]
[1724774594418,0.009053,61775.0,61770.0,0.323781]
[1724774594635,0.009053,61775.0,61771.0,0.00323735]
[1724774594856,0.009053,61775.0,61761.0,0.01405114]
[1724774595096,0.04820834,61773.0,61756.0,0.679353]
[1724774595346,0.323777,61771.0,61759.0,0.161919]
[1724774595576,0.007,61766.0,61765.0,0.001]
[1724774595817,0.323777,61771.0,61756.0,0.3555]
[1724774596058,0.161897,61768.0,61758.0,0.161922]
[1724774596289,0.161897,61768.0,61761.0,0.001]
[1724774596496,0.00090421,61766.0,61761.0,0.001]
[1724774596716,0.00090421,61766.0,61762.0,0.00323803]
[1724774596948,0.00090421,61766.0,61762.0,0.16191]
[1724774597157,0.00090421,61766.0,61763.0,0.161907]
[1724774597364,0.00090421,61766.0,61759.0,0.323835]
[1724774597568,0.00090421,61766.0,61764.0,0.161905]
[1724774597776,0.00090421,61766.0,61765.0,0.00323775]
[1724774598205,0.00090421,61766.0,61761.0,0.161913]
[1724774598422,0.00090421,61766.0,61763.0,0.012]
[1724774598647,0.00090421,61766.0,61763.0,0.005]
[1724774599090,0.00090421,61766.0,61765.0,0.002]
[1724774599520,0.00090421,61766.0,61765.0,1.03241]
[1724774599749,0.00090421,61766.0,61765.0,1.35606776]
[1724774600169,0.00090421,61766.0,61765.0,1.83984021]
[1724774600380,0.00090421,61766.0,61765.0,1.83798945]
[1724774601509,0.00090421,61766.0,61765.0,1.88344617]
[1724774601723,0.00190421,61766.0,61765.0,2.05741162]
[1724774601931,0.00190421,61766.0,61765.0,2.0119549]
[1724774602134,0.00190421,61766.0,61765.0,2.07141162]
[1724774602554,0.00190421,61766.0,61765.0,2.0259549]
[1724774603384,0.00190421,61766.0,61765.0,1.54218245]
[1724774603601,0.00190421,61766.0,61765.0,0.175903]
[1724774603808,0.00090421,61766.0,61765.0,0.175903]
[1724774604018,0.00190421,61766.0,61765.0,0.51371]
[1724774604252,0.00190421,61766.0,61765.0,0.823517]
[1724774604669,0.00190421,61766.0,61765.0,0.837517]
[1724774605306,0.00190421,61766.0,61765.0,1.32128945]
[1724774607061,0.00190421,61766.0,61765.0,1.67368945]
[1724774607272,0.00190421,61766.0,61765.0,1.99749645]
[1724774607489,0.00190421,61766.0,61765.0,2.28449645]